[Event "Israeli Open Championship 2019"]
[Site "Jerusalem"]
[Date "2019.12.15"]
[Round "3.8"]
[White "Har-Even, Abir"]
[Black "Zak, Arad"]
[Result "1/2-1/2"]
[ECO "B05"]
[WhiteElo "2104"]
[BlackElo "2076"]
[Annotator "NA RC"]
[PlyCount "109"]
[EventDate "2019.12.12"]
[EventType "swiss"]
[EventCountry "ISR"]
[SourceTitle "playchess.com"]
[Source "ChessBase"]
[SourceQuality "1"]
[TimeControl "5400+30"]

1. e4 {[%emt 0:00:00]} Nf6 {[%emt 0:04:23]} 2. e5 {[%emt 0:00:00]} Nd5 {[%emt 0:00:13]} 3. d4 {[%emt 0:00:03]} d6 {[%emt 0:00:11]} 4. c4 {[%emt 0:00:11]} Nb6 {[%emt 0:00:07]} 5. exd6 {[%emt 0:00:14]} exd6 {[%emt 0:00:08]} 6. Nc3 {[%emt 0:00:17]} Nc6 {[%emt 0:00:14]} 7. Be3 {[%emt 0:00:22]} Be7 {[%emt 0:00:17]} 8. Rc1 {[%emt 0:00:40]} O-O {[%emt 0:07:15]} 9. b3 {[%emt 0:01:40]} Re8 {[%emt 0:05:58]} 10. Nf3 {[%emt 0:04:02]} Bg4 {[%emt 0:01:50]} 11. Be2 {[%emt 0:01:25]} Bf6 {[%emt 0:02:09]} 12. O-O {[%emt 0:00:56]} d5 {[%emt 0:02:11] B05: Alekhine's Defence: 4 Nf3 Bg4} 13. c5 {[%emt 0:05:48]} Nc8 {[%emt 0:00:39]} 14. h3 {[%emt 0:00:28]} Bf5 {[%emt 0:19:09]} 15. Qd2 {[%emt 0:05:50]} h6 {[%emt 0:04:21]} 16. Nh2 {[%emt 0:17:58]} N8e7 {[%emt 0:06:02]} 17. Ng4 {[%emt 0:03:22]} Bxg4 {[%emt 0:00:13]} 18. Bxg4 {[%emt 0:01:12]} Ng6 {[%emt 0:05:24]} 19. Ne2 $146 {[%emt 0:02:10]} ({Predecessor:} 19. g3 Nf8 20. Ne2 Ne6 21. b4 {½-½ (44) Gomez Fontal,F (2329)-Baron Rodriguez,J (2431) Havana 2007}) 19... a5 {[%emt 0:15:15]} 20. Ng3 {[%emt 0:03:35]} Bg5 {[%emt 0:04:25]} 21. f4 {[%emt 0:10:16]} Bf6 {[%emt 0:00:36]} 22. Nh5 {[%emt 0:00:16]} Kh8 {[%emt 0:08:04]} 23. Rcd1 {[%emt 0:15:24]} Nf8 {[%emt 0:01:57]} 24. Nxf6 {[%emt 0:05:26]} Qxf6 {[%emt 0:00:12]} 25. a3 {[%emt 0:00:34]} Re7 {[%emt 0:03:42]} 26. Bf3 {[%emt 0:02:28]} Qe6 {[%emt 0:00:51]} 27. Rfe1 {[%emt 0:00:56]} Rae8 {[%emt 0:01:24]} 28. b4 {[%emt 0:01:07]} axb4 {[%emt 0:00:28]} 29. axb4 {[%emt 0:00:04]} Qf5 $14 {[%emt 0:02:13]} 30. g4 {[%emt 0:05:04]} Qf6 {[%emt 0:01:06]} 31. Bxd5 {[%emt 0:02:42]} Nxb4 {[%emt 0:00:10]} 32. Bg2 {[%emt 0:01:20]} Ng6 {[%emt 0:02:53]} 33. d5 {[%emt 0:03:17]} Nc2 {[%emt 0:00:19]} 34. Qxc2 {[%emt 0:00:32]} Rxe3 {[%emt 0:00:05]} 35. Rxe3 {[%emt 0:00:57]} Rxe3 {[%emt 0:00:01]} 36. d6 {[%emt 0:01:31]} cxd6 {[%emt 0:01:21]} 37. cxd6 {[%emt 0:00:28]} Re8 {[%emt 0:02:10]} 38. d7 {[%emt 0:00:54]} Rd8 {[%emt 0:00:06]} 39. Qc7 {[%emt 0:02:57]} Nxf4 {[%emt 0:00:20]} 40. Re1 {[%emt 0:01:40]} Ne6 {[%emt 0:00:30]} 41. Qxb7 {[%emt 0:00:32]} Qd4+ {[%emt 0:00:10]} 42. Kh1 {[%emt 0:00:12]} Qxd7 {[%emt 0:00:09]} 43. Qxd7 {[%emt 0:00:48]} Rxd7 {[%emt 0:00:01]} 44. Be4 {[%emt 0:00:17]} g6 {[%emt 0:00:18]} 45. Bxg6 {[%emt 0:00:59]} Nf4 {[%emt 0:00:43]} 46. Bf5 {[%emt 0:00:21]} Rd2 {[%emt 0:00:07]} 47. Re3 {[%emt 0:00:42]} Kg7 {[%emt 0:00:11]} 48. Rf3 {[%emt 0:00:21]} Nd5 {[%emt 0:00:26]} 49. Rd3 {[%emt 0:00:16]} Rxd3 50. Bxd3 {[%emt 0:00:02]} Kf6 {[%emt 0:01:09]} 51. Kh2 {[%emt 0:00:14]} Nf4 {[%emt 0:02:00]} 52. Bc4 {[%emt 0:00:08]} h5 {[%emt 0:01:00]} 53. Kg3 {[%emt 0:00:19]} hxg4 {[%emt 0:00:32]} 54. Kxf4 {[%emt 0:00:33]} gxh3 {[%emt 0:00:07]} 55. Ke4 {[%emt 0:03:40] Ke5+} 1/2-1/2

[Event "Israeli Open Championship 2019"]
[Site "Jerusalem"]
[Date "2019.12.15"]
[Round "3.10"]
[White "Gruzman, Ilya"]
[Black "Baron, Tal"]
[Result "0-1"]
[ECO "D85"]
[WhiteElo "1889"]
[BlackElo "2541"]
[Annotator "RC"]
[PlyCount "72"]
[EventDate "2019.12.12"]
[EventType "swiss"]
[EventCountry "ISR"]
[SourceTitle "playchess.com"]
[Source "ChessBase"]
[SourceQuality "1"]
[TimeControl "5400+30"]

1. Nf3 {[%emt 0:00:00]} g6 {[%emt 0:03:05]} 2. c4 {[%emt 0:01:09]} Bg7 {[%emt 0:00:05]} 3. d4 {[%emt 0:01:13]} Nf6 {[%emt 0:00:10]} 4. Nc3 {[%emt 0:00:33]} d5 {[%emt 0:00:10]} 5. cxd5 {[%emt 0:01:21]} Nxd5 {[%emt 0:00:02]} 6. e4 {[%emt 0:00:07]} Nxc3 {[%emt 0:00:04]} 7. bxc3 {[%emt 0:00:03]} c5 {[%emt 0:00:03]} 8. Rb1 {[%emt 0:00:21]} O-O {[%emt 0:00:03]} 9. Be2 {[%emt 0:00:24]} b6 {[%emt 0:00:19]} 10. Be3 {[%emt 0:00:58]} Bb7 {[%emt 0:00:30]} 11. Qd3 {[%emt 0:08:56]} e6 {[%emt 0:08:58]} 12. O-O {[%emt 0:18:21]} Qc7 {[%emt 0:04:27]} 13. dxc5 {[%emt 0:04:07]} Nd7 {[%emt 0:04:58]} 14. cxb6 {[%emt 0:12:13]} axb6 {[%emt 0:00:09]} 15. Rfd1 {[%emt 0:10:18]} Nc5 {[%emt 0:04:46]} 16. Bxc5 {[%emt 0:01:53]} Qxc5 {[%emt 0:00:06]} 17. Qd6 {[%emt 0:06:43]} Bxe4 {[%emt 0:01:23]} 18. Rxb6 {[%emt 0:06:01]} Qxc3 {[%emt 0:03:50]} 19. Rb3 {[%emt 0:05:43]} Qa5 {[%emt 0:00:59]} 20. Qd2 {[%emt 0:12:18]} Qxa2 {[%emt 0:02:22]} 21. Qxa2 {[%emt 0:02:11]} Rxa2 {[%emt 0:00:02]} 22. Re3 {[%emt 0:00:45]} Bd5 {[%emt 0:02:23]} 23. Bf1 {[%emt 0:01:32]} Rc8 {[%emt 0:01:33]} 24. Ne1 {[%emt 0:01:18]} Ra1 {[%emt 0:06:06]} 25. Rxa1 {[%emt 0:00:24]} Bxa1 {[%emt 0:00:01]} 26. Nd3 {[%emt 0:00:51]} Bd4 {[%emt 0:00:19]} 27. Re2 {[%emt 0:00:43]} Rb8 {[%emt 0:03:41]} 28. Nf4 {[%emt 0:00:01]} Bc6 {[%emt 0:04:55]} 29. Nd3 {[%emt 0:00:06]} Rb3 {[%emt 0:02:32]} 30. Rc2 {[%emt 0:00:40]} Bd5 {[%emt 0:02:40]} 31. Nf4 {[%emt 0:00:32]} Bb7 {[%emt 0:01:48]} 32. Rd2 {[%emt 0:01:22]} Bb6 {[%emt 0:02:12]} 33. Rd1 {[%emt 0:01:15]} e5 {[%emt 0:02:07]} 34. Ne2 {[%emt 0:01:36]} Rb2 {[%emt 0:01:51]} 35. g3 {[%emt 0:00:53]} Bf3 {[%emt 0:00:25]} 36. Re1 {[%emt 0:00:15]} e4 {[%emt 0:00:09]} 0-1

[Event "Israeli Open Championship 2019"]
[Site "Jerusalem"]
[Date "2019.12.15"]
[Round "3.14"]
[White "Yehoshua, Azgad"]
[Black "Zalkind, Konstantin"]
[Result "0-1"]
[ECO "B12"]
[WhiteElo "1746"]
[BlackElo "2162"]
[Annotator "NA RC"]
[PlyCount "92"]
[EventDate "2019.12.12"]
[EventType "swiss"]
[EventCountry "ISR"]
[SourceTitle "playchess.com"]
[Source "ChessBase"]
[SourceQuality "1"]
[TimeControl "5400+30"]

1. e4 {[%emt 0:00:00]} c6 {[%emt 0:00:00]} 2. d4 {[%emt 0:00:10]} d5 {[%emt 0:00:00]} 3. e5 {[%emt 0:00:44]} Bf5 {[%emt 0:00:23]} 4. Bd3 {[%emt 0:02:24]} Bxd3 {[%emt 0:00:30]} 5. Qxd3 {[%emt 0:00:12]} e6 {[%emt 0:00:20]} 6. Ne2 {[%emt 0:03:44]} c5 {[%emt 0:01:14]} 7. c3 {[%emt 0:05:52]} Nc6 {[%emt 0:00:54]} 8. O-O {[%emt 0:02:38]} Nge7 {[%emt 0:01:53] B12: Caro-Kann: Advance Variation} (8... Rc8 9. Nd2 Nh6 10. Nf3 Nf5 11. Bd2 Be7 12. g4 Nh4 13. Nxh4 Bxh4 14. f4 Be7 15. f5 Qb6 16. fxe6 fxe6 {1-0 (48) Matlakov,M (2700)-Le,Q (2714) St Petersburg 2018}) 9. f4 {[%emt 0:26:27]} cxd4 {[%emt 0:06:12]} 10. Nxd4 {[%emt 0:05:03]} Qd7 $146 {[%emt 0:05:00]} ({Predecessor:} 10... Nxd4 11. cxd4 Qb6 12. Nc3 Rc8 13. Ne2 h5 14. Bd2 Nf5 15. Rac1 Rc6 16. Bc3 {0-1 (40) Gurbanov,F-Zarkua,D (2390) Baku 2007}) 11. Nd2 {[%emt 0:07:36]} Nxd4 {[%emt 0:11:00]} 12. cxd4 {[%emt 0:01:33]} Nc6 {[%emt 0:00:54]} 13. a3 {[%emt 0:04:42]} Be7 {[%emt 0:00:21]} 14. Nf3 {[%emt 0:07:35]} O-O {[%emt 0:09:24]} 15. b3 {[%emt 0:07:11]} a5 {[%emt 0:03:47]} 16. Ra2 {[%emt 0:04:55]} a4 {[%emt 0:00:21]} 17. g4 axb3 18. Rg2 {[%emt 0:18:14]} f5 {[%emt 0:08:06]} 19. gxf5 {[%emt 0:00:00]} Rxf5 {[%emt 0:01:42]} 20. Qxb3 {[%emt 0:00:00]} Na5 {[%emt 0:01:28]} 21. Qd3 {[%emt 0:00:00]} Nc4 {[%emt 0:00:19]} 22. Kh1 {[%emt 0:00:00]} Raf8 {[%emt 0:09:24]} 23. Rfg1 {[%emt 0:00:00]} R8f7 {[%emt 0:03:49]} 24. Ng5 {[%emt 0:00:05]} Bxg5 {[%emt 0:00:41]} 25. Rxg5 {[%emt 0:00:41]} Qe8 {[%emt 0:04:09]} 26. Qg3 {[%emt 0:01:56]} Rxg5 {[%emt 0:00:37]} 27. Qxg5 {[%emt 0:00:27]} Qf8 {[%emt 0:00:50]} 28. h4 {[%emt 0:00:52]} Rf5 {[%emt 0:00:21]} 29. Qg4 {[%emt 0:00:26]} Qf7 {[%emt 0:01:23]} 30. Kh2 {[%emt 0:00:52]} b5 {[%emt 0:02:31]} 31. Kh3 {[%emt 0:00:19]} Kf8 {[%emt 0:03:51]} 32. Qg3 {[%emt 0:00:44]} g6 {[%emt 0:01:45]} 33. Qb3 {[%emt 0:00:30]} Qd7 {[%emt 0:00:56]} 34. Kg3 {[%emt 0:00:23]} Qc6 {[%emt 0:00:39]} 35. Rg2 {[%emt 0:00:39]} (35. Bd2 $11 {and White has nothing to worry.}) 35... Nxe5 {[%emt 0:05:12]} 36. dxe5 {[%emt 0:00:23]} Qxc1 {[%emt 0:00:13]} 37. Qb4+ {[%emt 0:00:34]} Kg8 $19 {[%emt 0:00:27]} 38. Rf2 {[%emt 0:00:33]} Qg1+ {[%emt 0:01:29]} 39. Kf3 {[%emt 0:00:23]} Qh1+ {[%emt 0:00:55]} 40. Kg3 {[%emt 0:00:38]} Qg1+ {[%emt 0:00:48]} 41. Kf3 {[%emt 0:00:05]} h6 {[%emt 0:02:41]} 42. a4 {[%emt 0:00:22]} g5 {[%emt 0:00:55]} 43. axb5 {[%emt 0:00:29]} Rxf4+ {[%emt 0:00:45]} 44. Qxf4 {[%emt 0:00:31]} Qd1+ {[%emt 0:00:25]} 45. Ke3 {[%emt 0:01:01]} gxf4+ {[%emt 0:00:10]} 46. Rxf4 {[%emt 0:00:13]} Qb3+ {[%emt 0:00:17]} 0-1

[Event "Israeli Open Championship 2019"]
[Site "Jerusalem"]
[Date "2019.12.15"]
[Round "3.15"]
[White "Sobel, Ido"]
[Black "Tsyn, Igor"]
[Result "1/2-1/2"]
[ECO "B23"]
[WhiteElo "1711"]
[BlackElo "2154"]
[Annotator "RC"]
[PlyCount "62"]
[EventDate "2019.12.12"]
[EventType "swiss"]
[EventCountry "ISR"]
[SourceTitle "playchess.com"]
[Source "ChessBase"]
[SourceQuality "1"]
[TimeControl "5400+30"]

1. e4 {[%emt 0:00:00]} c5 {[%emt 0:15:19]} 2. Nc3 {[%emt 0:00:00]} Nc6 {[%emt 0:00:09]} 3. f4 {[%emt 0:00:00]} e6 {[%emt 0:00:03]} 4. Bb5 {[%emt 0:00:04]} Nge7 {[%emt 0:00:55]} 5. Nf3 {[%emt 0:00:21]} a6 {[%emt 0:00:22]} 6. Bxc6 {[%emt 0:00:12]} Nxc6 {[%emt 0:01:18]} 7. d3 {[%emt 0:00:57]} d5 {[%emt 0:02:15]} 8. O-O {[%emt 0:00:24]} Be7 {[%emt 0:00:29]} 9. Qe1 {[%emt 0:01:10]} O-O {[%emt 0:03:47]} 10. a3 {[%emt 0:08:05]} b5 {[%emt 0:04:19]} 11. Nd1 {[%emt 0:07:30]} Nd4 {[%emt 0:24:33]} 12. Nxd4 {[%emt 0:09:01]} cxd4 {[%emt 0:00:04]} 13. e5 {[%emt 0:00:18]} Bd7 {[%emt 0:05:20]} 14. b3 {[%emt 0:04:48]} Rc8 {[%emt 0:12:21]} 15. Rf2 {[%emt 0:08:18]} Qb6 {[%emt 0:02:44]} 16. Bb2 {[%emt 0:02:40]} Bh4 {[%emt 0:03:08]} 17. g3 {[%emt 0:01:19]} Be7 {[%emt 0:00:00]} 18. Re2 {[%emt 0:07:16]} Qa7 {[%emt 0:00:30]} 19. Kh1 {[%emt 0:04:02]} f6 {[%emt 0:07:55]} 20. Qg1 {[%emt 0:02:42]} fxe5 {[%emt 0:00:42]} 21. fxe5 {[%emt 0:00:53]} Bc5 {[%emt 0:00:38]} 22. Nf2 {[%emt 0:14:44]} Rf5 {[%emt 0:01:49]} 23. Nh3 {[%emt 0:03:20]} Rcf8 {[%emt 0:01:18]} 24. b4 {[%emt 0:09:22]} Bb6 {[%emt 0:00:10]} 25. Nf4 {[%emt 0:05:20]} Bc8 {[%emt 0:00:24]} 26. Rae1 {[%emt 0:00:48]} Bd7 {[%emt 0:04:15]} 27. Ba1 {[%emt 0:03:55]} R8f7 {[%emt 0:01:56]} 28. Bb2 {[%emt 0:00:39]} Re7 {[%emt 0:00:34]} 29. Rf1 {[%emt 0:01:20]} Ref7 {[%emt 0:00:28]} 30. Rfe1 {[%emt 0:00:08]} Rg5 {[%emt 0:00:21]} 31. Rf1 {[%emt 0:02:08]} Rgf5 {[%emt 0:01:10]} 1/2-1/2

[Event "Israeli Open Championship 2019"]
[Site "Jerusalem"]
[Date "2019.12.15"]
[Round "3.16"]
[White "Slonimskij, Arkadij"]
[Black "Freiman, Mark"]
[Result "1-0"]
[ECO "E35"]
[WhiteElo "2133"]
[BlackElo "1724"]
[Annotator "RC"]
[PlyCount "77"]
[EventDate "2019.12.12"]
[EventType "swiss"]
[EventCountry "ISR"]
[SourceTitle "playchess.com"]
[Source "ChessBase"]
[SourceQuality "1"]
[TimeControl "5400+30"]

1. d4 {[%emt 0:00:00]} Nf6 {[%emt 0:00:00]} 2. c4 {[%emt 0:00:00]} e6 {[%emt 0:00:00]} 3. Nc3 {[%emt 0:00:00]} Bb4 {[%emt 0:00:01]} 4. Qc2 {[%emt 0:00:01]} d5 {[%emt 0:00:18]} 5. cxd5 {[%emt 0:00:10]} exd5 {[%emt 0:00:02]} 6. Bg5 {[%emt 0:00:12]} h6 {[%emt 0:00:16]} 7. Bh4 {[%emt 0:00:10]} c5 {[%emt 0:00:16]} 8. e3 {[%emt 0:00:12]} cxd4 {[%emt 0:00:51]} 9. exd4 {[%emt 0:00:24]} Nc6 {[%emt 0:02:58]} 10. Bb5 {[%emt 0:01:02]} O-O {[%emt 0:13:10]} 11. Nge2 {[%emt 0:00:18]} a6 {[%emt 0:07:38]} 12. Bxc6 {[%emt 0:03:57]} bxc6 {[%emt 0:00:03]} 13. O-O {[%emt 0:00:14]} Bd6 {[%emt 0:05:48]} 14. Bg3 {[%emt 0:01:15]} Ng4 {[%emt 0:09:02]} 15. h3 {[%emt 0:02:10]} Nf6 {[%emt 0:01:26]} 16. Rac1 {[%emt 0:03:25]} Re8 {[%emt 0:05:21]} 17. Bxd6 {[%emt 0:01:23]} Qxd6 {[%emt 0:01:07]} 18. Ng3 {[%emt 0:00:37]} Qf4 {[%emt 0:04:16]} 19. Nce2 {[%emt 0:03:48]} Qh4 {[%emt 0:02:22]} 20. Qd2 {[%emt 0:05:26]} Ne4 {[%emt 0:09:17]} 21. Nxe4 {[%emt 0:02:43]} Rxe4 {[%emt 0:00:10]} 22. f3 {[%emt 0:03:19]} Re6 {[%emt 0:03:42]} 23. Qf4 {[%emt 0:07:08]} Qe7 {[%emt 0:04:46]} 24. Ng3 {[%emt 0:00:37]} Rf6 {[%emt 0:02:45]} 25. Qe5 {[%emt 0:02:27]} Re6 {[%emt 0:00:42]} 26. Qf4 {[%emt 0:01:03]} Rf6 {[%emt 0:00:01]} 27. Qd2 {[%emt 0:00:36]} Qd6 {[%emt 0:00:15]} 28. f4 {[%emt 0:02:31]} Bd7 {[%emt 0:01:02]} 29. Rc3 {[%emt 0:01:52]} Re8 {[%emt 0:05:08]} 30. f5 {[%emt 0:02:00]} c5 {[%emt 0:04:45]} 31. dxc5 {[%emt 0:01:35]} Qe5 {[%emt 0:00:02]} 32. Qf4 {[%emt 0:00:43]} d4 {[%emt 0:04:45]} 33. Rcc1 {[%emt 0:07:12]} Qxf4 {[%emt 0:05:59]} 34. Rxf4 {[%emt 0:00:19]} d3 {[%emt 0:00:09]} 35. Rd4 {[%emt 0:01:31]} Bxf5 {[%emt 0:02:28]} 36. Nxf5 {[%emt 0:00:57]} Rxf5 {[%emt 0:00:01]} 37. c6 {[%emt 0:00:44]} Kh7 {[%emt 0:04:44]} 38. c7 {[%emt 0:00:54]} Rc8 {[%emt 0:00:07]} 39. Rxd3 {[%emt 0:00:25]} 1-0

[Event "Israeli Open Championship 2019"]
[Site "Jerusalem"]
[Date "2019.12.16"]
[Round "4.3"]
[White "Soffer, Ram"]
[Black "Mikhalevski, Victor"]
[Result "0-1"]
[ECO "D97"]
[WhiteElo "2490"]
[BlackElo "2559"]
[Annotator "ChessBase"]
[PlyCount "82"]
[EventDate "2019.12.12"]
[EventType "swiss"]
[EventCountry "ISR"]
[SourceTitle "playchess.com"]
[Source "ChessBase"]
[SourceQuality "1"]
[TimeControl "5400+30"]

1. d4 {[%emt 0:18:20]} Nf6 {[%emt 0:00:00]} 2. Nf3 {[%emt 0:00:07]} g6 {[%emt 0:00:00]} 3. c4 {[%emt 0:00:05]} Bg7 {[%emt 0:00:02]} 4. Nc3 {[%emt 0:00:05]} d5 {[%emt 0:00:13]} 5. Qb3 {[%emt 0:00:04]} dxc4 {[%emt 0:00:25]} 6. Qxc4 {[%emt 0:00:04]} O-O {[%emt 0:00:19]} 7. e4 {[%emt 0:00:03]} c6 {[%emt 0:01:58]} 8. Be2 {[%emt 0:02:51]} b5 {[%emt 0:00:56]} 9. Qd3 {[%emt 0:04:34]} Qa5 {[%emt 0:03:22]} 10. Nd2 {[%emt 0:15:51]} Be6 {[%emt 0:11:55]} 11. a3 {[%emt 0:04:12]} Rd8 {[%emt 0:04:40]} 12. O-O {[%emt 0:05:53]} Nbd7 {[%emt 0:06:43]} 13. Qb1 {[%emt 0:03:00]} Nb6 {[%emt 0:21:52]} 14. Nf3 {[%emt 0:05:46]} Nc4 {[%emt 0:14:58]} 15. Rd1 {[%emt 0:03:19]} Bg4 {[%emt 0:02:42]} 16. Qc2 {[%emt 0:08:43]} Bxf3 {[%emt 0:02:09]} 17. Bxf3 {[%emt 0:00:06]} e5 {[%emt 0:00:07]} 18. b4 {[%emt 0:07:59]} Qc7 {[%emt 0:02:39]} 19. dxe5 {[%emt 0:02:55]} Qxe5 {[%emt 0:04:23]} 20. Rb1 {[%emt 0:01:03]} h5 {[%emt 0:05:17]} 21. g3 {[%emt 0:01:10]} Ng4 {[%emt 0:01:50]} 22. Ne2 {[%emt 0:06:20]} Qf6 {[%emt 0:00:09]} 23. Bxg4 {[%emt 0:00:47]} Rxd1+ {[%emt 0:02:46]} 24. Qxd1 {[%emt 0:00:02]} hxg4 {[%emt 0:00:07]} 25. Rb3 {[%emt 0:01:52]} Re8 {[%emt 0:01:34]} 26. Nf4 {[%emt 0:04:22]} Rxe4 {[%emt 0:00:46]} 27. Be3 {[%emt 0:01:12]} Qe7 {[%emt 0:08:37]} 28. Qxg4 {[%emt 0:01:13]} Nxe3 {[%emt 0:00:08]} 29. Qc8+ {[%emt 0:00:23]} Kh7 {[%emt 0:00:16]} 30. fxe3 {[%emt 0:00:51]} Rxe3 {[%emt 0:00:12]} 31. Rxe3 {[%emt 0:00:53]} Qxe3+ {[%emt 0:00:02]} 32. Kg2 {[%emt 0:00:09]} Qxa3 {[%emt 0:00:13]} 33. Qxc6 {[%emt 0:00:34]} Qxb4 {[%emt 0:00:09]} 34. Qb7 {[%emt 0:01:09]} Qc4 {[%emt 0:01:09]} 35. Nd5 {[%emt 0:00:16]} Qe4+ {[%emt 0:00:23]} 36. Kh3 {[%emt 0:00:03]} Qe6+ {[%emt 0:01:26]} 37. Kg2 {[%emt 0:00:08]} Qe2+ {[%emt 0:00:24]} 38. Kh3 {[%emt 0:00:05]} Qf1+ {[%emt 0:00:05]} 39. Kh4 {[%emt 0:00:13]} Qf5 {[%emt 0:00:28]} 40. g4 {[%emt 0:00:32]} Qf2+ {[%emt 0:00:21]} 41. Kh3 {[%emt 0:00:11]} Be5 {[%emt 0:00:14]} 0-1

[Event "Israeli Open Championship 2019"]
[Site "Jerusalem"]
[Date "2019.12.16"]
[Round "4.4"]
[White "Gorodetzky, David"]
[Black "Birnboim, Nathan"]
[Result "1-0"]
[ECO "C47"]
[WhiteElo "2483"]
[BlackElo "2393"]
[Annotator "ChessBase"]
[PlyCount "88"]
[EventDate "2019.12.12"]
[EventType "swiss"]
[EventCountry "ISR"]
[SourceTitle "playchess.com"]
[Source "ChessBase"]
[SourceQuality "1"]
[TimeControl "5400+30"]

1. e4 {[%emt 0:00:00]} e5 {[%emt 0:00:00]} 2. Nf3 {[%emt 0:00:00]} Nc6 {[%emt 0:00:00]} 3. Nc3 {[%emt 0:10:36]} Nf6 {[%emt 0:00:22]} 4. Be2 {[%emt 0:02:55]} d5 {[%emt 0:03:33]} 5. exd5 {[%emt 0:03:15]} Nxd5 {[%emt 0:00:04]} 6. O-O {[%emt 0:04:05]} Nxc3 {[%emt 0:13:02]} 7. bxc3 {[%emt 0:04:41]} Bd6 {[%emt 0:01:01]} 8. d3 {[%emt 0:11:22]} O-O {[%emt 0:00:39]} 9. Nd2 {[%emt 0:05:42]} Be6 {[%emt 0:07:42]} 10. Bf3 {[%emt 0:10:38]} f5 {[%emt 0:05:09]} 11. Rb1 {[%emt 0:08:39]} Rb8 {[%emt 0:02:26]} 12. c4 {[%emt 0:03:19]} e4 {[%emt 0:12:07]} 13. dxe4 {[%emt 0:00:35]} Ne5 {[%emt 0:02:21]} 14. Be2 {[%emt 0:06:58]} f4 {[%emt 0:09:08]} 15. Bb2 {[%emt 0:00:24]} c5 {[%emt 0:11:42]} 16. Nf3 {[%emt 0:05:21]} Nxf3+ {[%emt 0:02:50]} 17. Bxf3 {[%emt 0:00:17]} Bxc4 {[%emt 0:01:10]} 18. Re1 {[%emt 0:01:44]} Bc7 {[%emt 0:04:55]} 19. e5 {[%emt 0:03:39]} Be6 {[%emt 0:05:06]} 20. Qe2 {[%emt 0:02:53]} b5 {[%emt 0:01:57]} 21. Rbd1 {[%emt 0:02:49]} Qe7 {[%emt 0:00:05]} 22. Bd5 {[%emt 0:02:08]} Qf7 {[%emt 0:05:25]} 23. c4 {[%emt 0:05:08]} bxc4 {[%emt 0:00:37]} 24. Bxe6 {[%emt 0:00:03]} Qxe6 {[%emt 0:00:06]} 25. Bc3 {[%emt 0:00:03]} f3 {[%emt 0:00:42]} 26. Qe4 {[%emt 0:02:40]} Kh8 {[%emt 0:03:39]} 27. gxf3 {[%emt 0:01:24]} Qh3 {[%emt 0:00:33]} 28. Qg4 {[%emt 0:00:29]} Qxf3 {[%emt 0:00:14]} 29. Qxf3 {[%emt 0:00:28]} Rxf3 {[%emt 0:00:03]} 30. Rd7 {[%emt 0:00:42]} Bb6 {[%emt 0:01:21]} 31. Re3 {[%emt 0:00:45]} Rxe3 {[%emt 0:00:17]} 32. fxe3 {[%emt 0:00:02]} h5 {[%emt 0:05:21]} 33. e6 {[%emt 0:00:51]} Rg8 {[%emt 0:00:33]} 34. Kf2 {[%emt 0:00:46]} Kh7 {[%emt 0:00:09]} 35. a4 {[%emt 0:01:05]} Re8 {[%emt 0:00:17]} 36. e7 {[%emt 0:00:22]} Kg6 {[%emt 0:00:22]} 37. a5 {[%emt 0:00:07]} Kf7 {[%emt 0:00:19]} 38. axb6 {[%emt 0:00:08]} axb6 {[%emt 0:00:04]} 39. Rb7 {[%emt 0:00:05]} Rxe7 {[%emt 0:00:29]} 40. Rxb6 {[%emt 0:00:05]} Rd7 {[%emt 0:00:36]} 41. Rc6 {[%emt 0:02:08]} Rd5 {[%emt 0:00:14]} 42. Kf3 {[%emt 0:00:50]} g5 {[%emt 0:00:47]} 43. Ke4 {[%emt 0:00:16]} Rd3 {[%emt 0:00:13]} 44. Be5 {[%emt 0:00:03]} Ke8 {[%emt 0:04:20]} 1-0

[Event "Israeli Open Championship 2019"]
[Site "Jerusalem"]
[Date "2019.12.16"]
[Round "4.5"]
[White "Gorodetzky, Matan"]
[Black "Golberg, Igor"]
[Result "1/2-1/2"]
[ECO "B13"]
[WhiteElo "2284"]
[BlackElo "2156"]
[Annotator "NA"]
[PlyCount "89"]
[EventDate "2019.12.12"]
[EventType "swiss"]
[EventCountry "ISR"]
[SourceTitle "playchess.com"]
[Source "ChessBase"]
[SourceQuality "1"]
[TimeControl "5400+30"]

1. e4 {[%emt 0:00:00]} c6 {[%emt 0:00:03]} 2. d4 {[%emt 0:00:00]} d5 {[%emt 0:00:06]} 3. exd5 {[%emt 0:00:27]} cxd5 {[%emt 0:00:08]} 4. Bd3 {[%emt 0:00:24]} Nc6 {[%emt 0:00:22]} 5. c3 {[%emt 0:00:22]} Nf6 {[%emt 0:00:07]} 6. Bf4 {[%emt 0:01:22]} Bg4 {[%emt 0:00:09]} 7. Qb3 {[%emt 0:00:52]} Qc8 {[%emt 0:00:26]} 8. Nd2 {[%emt 0:01:41]} e6 {[%emt 0:00:12]} 9. Ngf3 {[%emt 0:04:37]} Be7 {[%emt 0:00:11]} 10. Ne5 {[%emt 0:06:21]} Nxe5 {[%emt 0:02:37]} 11. Bxe5 {[%emt 0:00:40]} a6 {[%emt 0:03:38]} 12. O-O {[%emt 0:04:44]} Bh5 {[%emt 0:02:26]} 13. c4 {[%emt 0:07:07]} O-O {[%emt 0:02:30]} 14. Rac1 {[%emt 0:08:48]} Qd7 {[%emt 0:00:53]} 15. c5 {[%emt 0:00:21]} Rac8 {[%emt 0:05:32]} 16. h3 {[%emt 0:00:59]} Bg6 {[%emt 0:00:10]} 17. Rfe1 {[%emt 0:05:36]} Qc6 $14 {[%emt 0:12:15]} 18. Bxg6 {[%emt 0:01:24]} hxg6 {[%emt 0:00:02]} 19. Qd3 {[%emt 0:00:51]} Nd7 {[%emt 0:01:06]} 20. Bh2 {[%emt 0:05:19]} a5 {[%emt 0:08:49]} 21. a3 {[%emt 0:12:20]} a4 {[%emt 0:01:05]} 22. Rc3 {[%emt 0:00:20]} b6 {[%emt 0:01:04]} 23. cxb6 {[%emt 0:00:56]} Qxb6 {[%emt 0:00:03]} 24. Rec1 {[%emt 0:00:11]} Rxc3 {[%emt 0:00:29]} 25. Qxc3 {[%emt 0:01:08]} Bg5 {[%emt 0:02:17]} 26. Rc2 {[%emt 0:00:35]} Bxd2 {[%emt 0:05:03]} 27. Qxd2 {[%emt 0:01:48]} Qa6 {[%emt 0:00:51]} 28. Qc1 {[%emt 0:02:20]} Nb6 {[%emt 0:01:30]} 29. Rc6 {[%emt 0:14:01]} Qb7 {[%emt 0:04:40]} 30. Rc7 {[%emt 0:00:49]} Rc8 {[%emt 0:00:21]} 31. Rxc8+ {[%emt 0:03:16]} Nxc8 {[%emt 0:00:02]} 32. Qc2 {[%emt 0:02:45]} Nb6 {[%emt 0:12:12]} 33. b3 {[%emt 0:01:52]} axb3 {[%emt 0:00:05]} 34. Qxb3 {[%emt 0:00:04]} Qc6 {[%emt 0:00:06]} 35. Bf4 {[%emt 0:00:51]} Kh7 {[%emt 0:00:53]} 36. h4 {[%emt 0:00:50]} f6 {[%emt 0:03:36]} 37. Kh2 {[%emt 0:02:06]} Nc4 {[%emt 0:00:59]} 38. Qc2 {[%emt 0:05:06]} e5 {[%emt 0:00:53]} 39. dxe5 {[%emt 0:01:27]} fxe5 {[%emt 0:00:02]} 40. Bg5 {[%emt 0:00:11]} e4 {[%emt 0:01:55]} 41. f3 {[%emt 0:01:09]} Qd6+ {[%emt 0:00:28]} 42. Kh1 {[%emt 0:00:43]} Nxa3 {[%emt 0:08:25]} 43. Qe2 {[%emt 0:00:31]} exf3 {[%emt 0:02:04]} 44. Qxf3 {[%emt 0:00:26]} Nc4 {[%emt 0:00:50]} 45. h5 {[%emt 0:00:43]} 1/2-1/2